[Event "*** Titled Tuesday Blitz"]
[Site "Chess.com"]
[Date "2020.05.26"]
[Round "7"]
[White "stanyga"]
[Black "KNVB"]
[Result "1-0"]
[WhiteElo "2618"]
[BlackElo "2759"]
[TimeControl "180+1"]
[EndTime "11:20:10 PDT"]
[Termination "stanyga won by resignation"]

1. d4 {[%clk 0:03:00.9]} 1... b6 {[%clk 0:03:00]} 2. c4 {[%clk 0:02:59.4]} 2...
Bb7 {[%clk 0:02:57.6]} 3. Nc3 {[%clk 0:02:59.4]} 3... e6 {[%clk 0:02:57.2]} 4.
a3 {[%clk 0:02:56.8]} 4... Nf6 {[%clk 0:02:57.4]} 5. Nf3 {[%clk 0:02:53]} 5...
g6 {[%clk 0:02:57.9]} 6. Qc2 {[%clk 0:02:51.4]} 6... Bxf3 {[%clk 0:02:58.5]} 7.
gxf3 {[%clk 0:02:49]} 7... c5 {[%clk 0:02:50.1]} 8. d5 {[%clk 0:02:45.7]} 8...
e5 {[%clk 0:02:44.3]} 9. f4 {[%clk 0:02:43.9]} 9... exf4 {[%clk 0:02:41.9]} 10.
Bxf4 {[%clk 0:02:43.4]} 10... Nh5 {[%clk 0:02:40.3]} 11. Bg3 {[%clk 0:02:31]}
11... d6 {[%clk 0:02:34.1]} 12. Bg2 {[%clk 0:02:23.6]} 12... Nd7 {[%clk
0:02:31.8]} 13. Qe4+ {[%clk 0:02:20.5]} 13... Qe7 {[%clk 0:01:35.6]} 14. Bxd6
{[%clk 0:02:19.1]} 14... Qxe4 {[%clk 0:01:33.6]} 15. Nxe4 {[%clk 0:02:20]} 15...
Bxd6 {[%clk 0:01:34.3]} 16. Nxd6+ {[%clk 0:02:19.4]} 16... Ke7 {[%clk
0:01:35.2]} 17. Nb5 {[%clk 0:02:15.1]} 17... Kf6 {[%clk 0:01:22.6]} 18. Bf3
{[%clk 0:01:53.4]} 18... Nf4 {[%clk 0:01:21.7]} 19. Kd2 {[%clk 0:01:43.2]} 19...
Ne5 {[%clk 0:01:19.3]} 20. b3 {[%clk 0:01:40.2]} 20... a6 {[%clk 0:01:09.9]} 21.
Nc3 {[%clk 0:01:37.7]} 21... Rad8 {[%clk 0:01:03.9]} 22. Be4 {[%clk 0:01:34.3]}
22... Ke7 {[%clk 0:00:54.8]} 23. e3 {[%clk 0:01:29.6]} 23... Nh5 {[%clk
0:00:54.7]} 24. f4 {[%clk 0:01:18.3]} 24... Nd7 {[%clk 0:00:54.8]} 25. Bf3
{[%clk 0:01:15.2]} 25... Ng7 {[%clk 0:00:50.9]} 26. e4 {[%clk 0:01:13.5]} 26...
f6 {[%clk 0:00:51.4]} 27. Rhe1 {[%clk 0:01:10.6]} 27... Rhe8 {[%clk 0:00:48]}
28. Rad1 {[%clk 0:01:03.6]} 28... Kd6 {[%clk 0:00:48]} 29. Kc2 {[%clk
0:00:58.4]} 29... Re7 {[%clk 0:00:47.9]} 30. e5+ {[%clk 0:00:55.9]} 30... Nxe5
{[%clk 0:00:38.5]} 31. Ne4+ {[%clk 0:00:53.8]} 31... Kd7 {[%clk 0:00:30.1]} 32.
Nxf6+ {[%clk 0:00:52.5]} 32... Kd6 {[%clk 0:00:30.1]} 33. Ne4+ {[%clk
0:00:50.4]} 33... Kd7 {[%clk 0:00:29.9]} 34. fxe5 {[%clk 0:00:49.9]} 34... Rxe5
{[%clk 0:00:30.8]} 35. Nxc5+ {[%clk 0:00:49.1]} 1-0

[Event "*** Titled Tuesday Blitz"]
[Site "Chess.com"]
[Date "2020.05.26"]
[Round "7"]
[White "GM4life"]
[Black "Grineva_Marianna"]
[Result "1-0"]
[WhiteElo "2377"]
[BlackElo "2142"]
[TimeControl "180+1"]
[EndTime "11:20:12 PDT"]
[Termination "GM4life won on time"]

1. e4 {[%clk 0:03:00.9]} 1... d6 {[%clk 0:02:59.7]} 2. d4 {[%clk 0:03:00.5]}
2... Nf6 {[%clk 0:02:59.9]} 3. Nc3 {[%clk 0:03:01.1]} 3... g6 {[%clk 0:03:00.1]}
4. f4 {[%clk 0:03:01.7]} 4... Bg7 {[%clk 0:02:59.5]} 5. Nf3 {[%clk 0:03:02.3]}
5... c5 {[%clk 0:02:59]} 6. Bb5+ {[%clk 0:03:02.3]} 6... Bd7 {[%clk 0:02:57.7]}
7. e5 {[%clk 0:03:02.8]} 7... Ng4 {[%clk 0:02:56.2]} 8. e6 {[%clk 0:03:02.4]}
8... Bxb5 {[%clk 0:02:44.7]} 9. exf7+ {[%clk 0:02:48.6]} 9... Kd7 {[%clk
0:02:33.5]} 10. Nxb5 {[%clk 0:02:28.2]} 10... Qa5+ {[%clk 0:02:22.6]} 11. Nc3
{[%clk 0:02:27.4]} 11... Nc6 {[%clk 0:02:01.7]} 12. Ne5+ {[%clk 0:02:00.1]}
12... Ngxe5 {[%clk 0:01:33.2]} 13. dxe5 {[%clk 0:01:59]} 13... Nd8 {[%clk
0:00:50.7]} 14. O-O {[%clk 0:01:53.7]} 14... Qb4 {[%clk 0:00:36.7]} 15. Qg4+
{[%clk 0:01:43.5]} 15... Kc6 {[%clk 0:00:26.9]} 16. Be3 {[%clk 0:01:16.9]} 16...
Nxf7 {[%clk 0:00:16.8]} 17. Qf3+ {[%clk 0:01:15.5]} 17... Kd7 {[%clk 0:00:11.5]}
18. e6+ {[%clk 0:01:13.6]} 18... Kd8 {[%clk 0:00:05.9]} 19. exf7 {[%clk
0:01:12.5]} 19... Rf8 {[%clk 0:00:06.4]} 20. Nd5 {[%clk 0:01:09.6]} 20... Qxb2
{[%clk 0:00:05.5]} 21. Rab1 {[%clk 0:01:09.3]} 21... Qxc2 {[%clk 0:00:04.9]} 22.
Nxe7 {[%clk 0:01:01]} 22... Kxe7 {[%clk 0:00:01.6]} 23. Rxb7+ {[%clk 0:00:59.6]}
23... Kf6 {[%clk 0:00:02.1]} 24. f5 {[%clk 0:00:55]} 24... g5 {[%clk 0:00:01.2]}
25. Bxg5+ {[%clk 0:00:48.4]} 25... Kxg5 {[%clk 0:00:02.1]} 26. f6 {[%clk
0:00:47.6]} 1-0

[Event "*** Titled Tuesday Blitz"]
[Site "Chess.com"]
[Date "2020.05.26"]
[Round "7"]
[White "kingmonkey2006"]
[Black "mamey78"]
[Result "1-0"]
[WhiteElo "2569"]
[BlackElo "2397"]
[TimeControl "180+1"]
[EndTime "11:20:17 PDT"]
[Termination "kingmonkey2006 won by resignation"]

1. b3 {[%clk 0:03:00.9]} 1... e5 {[%clk 0:02:58.3]} 2. Bb2 {[%clk 0:03:00.9]}
2... Nc6 {[%clk 0:02:58.5]} 3. e3 {[%clk 0:03:01.7]} 3... Nf6 {[%clk 0:02:58.2]}
4. Bb5 {[%clk 0:03:01.6]} 4... Bd6 {[%clk 0:02:58.1]} 5. Na3 {[%clk 0:03:01]}
5... a6 {[%clk 0:02:50.3]} 6. Be2 {[%clk 0:03:00.8]} 6... b5 {[%clk 0:02:49.7]}
7. c4 {[%clk 0:03:00.7]} 7... b4 {[%clk 0:02:28]} 8. Nc2 {[%clk 0:03:01.2]} 8...
O-O {[%clk 0:02:27.5]} 9. d4 {[%clk 0:02:56.1]} 9... Re8 {[%clk 0:02:22.9]} 10.
Nf3 {[%clk 0:02:54.1]} 10... exd4 {[%clk 0:02:18.9]} 11. exd4 {[%clk 0:02:55]}
11... Qe7 {[%clk 0:01:50.2]} 12. d5 {[%clk 0:02:45]} 12... Ne5 {[%clk
0:01:35.5]} 13. O-O {[%clk 0:02:38.7]} 13... c5 {[%clk 0:01:18.6]} 14. dxc6
{[%clk 0:02:20.1]} 14... dxc6 {[%clk 0:01:13.8]} 15. Nxe5 {[%clk 0:02:11.2]}
15... Bxe5 {[%clk 0:01:12.6]} 16. Bxe5 {[%clk 0:02:12.1]} 16... Qxe5 {[%clk
0:01:11.8]} 17. Bf3 {[%clk 0:02:12.9]} 17... Bf5 {[%clk 0:00:31.3]} 18. Nxb4
{[%clk 0:01:55.8]} 18... Rad8 {[%clk 0:00:29.5]} 19. Qc1 {[%clk 0:01:50.9]}
19... Qc5 {[%clk 0:00:22.1]} 20. Nxc6 {[%clk 0:01:37.3]} 20... Rd3 {[%clk
0:00:22.1]} 21. b4 {[%clk 0:01:19.1]} 21... Qb6 {[%clk 0:00:20.7]} 22. Qf4
{[%clk 0:00:59.8]} 22... Rxf3 {[%clk 0:00:17.9]} 23. gxf3 {[%clk 0:00:58.4]}
23... Bd3 {[%clk 0:00:14.7]} 24. Qd4 {[%clk 0:00:43.8]} 24... Qxd4 {[%clk
0:00:12.4]} 25. Nxd4 {[%clk 0:00:44.7]} 25... Bxf1 {[%clk 0:00:12.3]} 26. Kxf1
{[%clk 0:00:45.6]} 1-0

[Event "*** Titled Tuesday Blitz"]
[Site "Chess.com"]
[Date "2020.05.26"]
[Round "7"]
[White "Boudicca64"]
[Black "Walter_White_Poland"]
[Result "0-1"]
[WhiteElo "1979"]
[BlackElo "2192"]
[TimeControl "180+1"]
[EndTime "11:20:24 PDT"]
[Termination "Walter_White_Poland won on time"]

1. e4 {[%clk 0:03:00.9]} 1... e5 {[%clk 0:02:59.4]} 2. d4 {[%clk 0:02:58.1]}
2... exd4 {[%clk 0:02:59.1]} 3. Qxd4 {[%clk 0:02:56.7]} 3... Nc6 {[%clk
0:02:59.3]} 4. Qe3 {[%clk 0:02:55.5]} 4... Nf6 {[%clk 0:02:59.2]} 5. Nc3 {[%clk
0:02:53.8]} 5... Bb4 {[%clk 0:02:58.1]} 6. Bd2 {[%clk 0:02:53.2]} 6... O-O
{[%clk 0:02:57.7]} 7. O-O-O {[%clk 0:02:53.6]} 7... Re8 {[%clk 0:02:57.6]} 8. f3
{[%clk 0:02:50]} 8... d6 {[%clk 0:02:55.2]} 9. Nge2 {[%clk 0:02:47.1]} 9... Bc5
{[%clk 0:02:17.5]} 10. Qg5 {[%clk 0:02:35.2]} 10... Ne5 {[%clk 0:02:02.8]} 11.
h4 {[%clk 0:02:03.4]} 11... Nc4 {[%clk 0:01:50.4]} 12. h5 {[%clk 0:01:47.1]}
12... h6 {[%clk 0:01:45]} 13. Qf4 {[%clk 0:01:40.8]} 13... Nxd2 {[%clk
0:01:42.6]} 14. Rxd2 {[%clk 0:01:37.9]} 14... Be6 {[%clk 0:01:29.6]} 15. g4
{[%clk 0:01:34.1]} 15... Nd7 {[%clk 0:01:29.5]} 16. Nd4 {[%clk 0:00:59.7]} 16...
Qg5 {[%clk 0:01:04.1]} 17. Qxg5 {[%clk 0:00:44.6]} 17... hxg5 {[%clk 0:01:05]}
18. h6 {[%clk 0:00:43.4]} 18... Ne5 {[%clk 0:01:00.1]} 19. Be2 {[%clk
0:00:39.2]} 19... Bxd4 {[%clk 0:00:48.8]} 20. Rxd4 {[%clk 0:00:36.4]} 20... Ng6
{[%clk 0:00:48.7]} 21. Bb5 {[%clk 0:00:09.4]} 21... c6 {[%clk 0:00:40.9]} 22.
Be2 {[%clk 0:00:05.9]} 22... gxh6 {[%clk 0:00:39.2]} 23. Rxd6 {[%clk 0:00:04]}
23... Kg7 {[%clk 0:00:32.4]} 0-1

[Event "*** Titled Tuesday Blitz"]
[Site "Chess.com"]
[Date "2020.05.26"]
[Round "7"]
[White "Shankovskyi"]
[Black "FrogMist"]
[Result "1-0"]
[WhiteElo "2531"]
[BlackElo "2354"]
[TimeControl "180+1"]
[EndTime "11:20:25 PDT"]
[Termination "Shankovskyi won by resignation"]

1. e4 {[%clk 0:03:00.9]} 1... e5 {[%clk 0:02:59]} 2. Nf3 {[%clk 0:03:01.4]} 2...
Nc6 {[%clk 0:02:57.6]} 3. Bc4 {[%clk 0:03:01.8]} 3... Nf6 {[%clk 0:02:56.7]} 4.
Ng5 {[%clk 0:03:02.2]} 4... d5 {[%clk 0:02:55.7]} 5. exd5 {[%clk 0:03:03.1]}
5... Na5 {[%clk 0:02:54.2]} 6. Bb5+ {[%clk 0:03:03.4]} 6... c6 {[%clk
0:02:54.7]} 7. dxc6 {[%clk 0:03:04.3]} 7... bxc6 {[%clk 0:02:54.6]} 8. Bd3
{[%clk 0:03:05]} 8... Be7 {[%clk 0:02:35.7]} 9. Nc3 {[%clk 0:02:58.3]} 9... h6
{[%clk 0:02:23.4]} 10. Nf3 {[%clk 0:02:57.6]} 10... Qc7 {[%clk 0:01:43.6]} 11.
O-O {[%clk 0:02:56]} 11... O-O {[%clk 0:01:43]} 12. Re1 {[%clk 0:02:56.1]} 12...
Bg4 {[%clk 0:01:33.8]} 13. h3 {[%clk 0:02:55.7]} 13... Bh5 {[%clk 0:01:34.1]}
14. g4 {[%clk 0:02:45.2]} 14... Bg6 {[%clk 0:01:31.5]} 15. Bxg6 {[%clk
0:02:37.9]} 15... fxg6 {[%clk 0:01:32.4]} 16. Nxe5 {[%clk 0:02:38.2]} 16... Bc5
{[%clk 0:01:18.2]} 17. d4 {[%clk 0:02:31.1]} 17... Rad8 {[%clk 0:01:17.6]} 18.
Be3 {[%clk 0:02:25.6]} 18... Bxd4 {[%clk 0:00:59.5]} 19. Bxd4 {[%clk 0:02:22.3]}
19... c5 {[%clk 0:00:59.7]} 20. Nxg6 {[%clk 0:01:57.7]} 20... Rxd4 {[%clk
0:00:58.9]} 21. Qe2 {[%clk 0:01:58.1]} 21... Rfd8 {[%clk 0:00:31.6]} 22. Nb5
{[%clk 0:01:42.8]} 22... Qf7 {[%clk 0:00:28.5]} 23. Nxd4 {[%clk 0:01:40.1]}
23... cxd4 {[%clk 0:00:22.4]} 24. Ne5 {[%clk 0:01:15]} 24... Qd5 {[%clk
0:00:22]} 25. b4 {[%clk 0:01:04]} 25... Nb7 {[%clk 0:00:20.5]} 26. Qf3 {[%clk
0:00:45.1]} 26... Qb5 {[%clk 0:00:18.3]} 27. a4 {[%clk 0:00:43.5]} 27... Qb6
{[%clk 0:00:16]} 28. a5 {[%clk 0:00:39.1]} 28... Qb5 {[%clk 0:00:16.2]} 29. Qc6
{[%clk 0:00:31.8]} 29... Qxc6 {[%clk 0:00:16.2]} 30. Nxc6 {[%clk 0:00:32.7]}
30... Rc8 {[%clk 0:00:16.8]} 31. Ne7+ {[%clk 0:00:32.4]} 1-0

[Event "*** Titled Tuesday Blitz"]
[Site "Chess.com"]
[Date "2020.05.26"]
[Round "7"]
[White "profofchess"]
[Black "wannabe2700"]
[Result "0-1"]
[WhiteElo "2485"]
[BlackElo "2715"]
[TimeControl "180+1"]
[EndTime "11:20:27 PDT"]
[Termination "wannabe2700 won by resignation"]

1. e4 {[%clk 0:03:00.9]} 1... e6 {[%clk 0:02:56.6]} 2. d4 {[%clk 0:03:00.4]}
2... d5 {[%clk 0:02:56.4]} 3. Nc3 {[%clk 0:03:00]} 3... Bb4 {[%clk 0:02:54.7]}
4. exd5 {[%clk 0:02:57.6]} 4... exd5 {[%clk 0:02:53.8]} 5. Bd3 {[%clk
0:02:58.5]} 5... Nf6 {[%clk 0:02:48.9]} 6. Nf3 {[%clk 0:02:46]} 6... O-O {[%clk
0:02:46.3]} 7. O-O {[%clk 0:02:45.8]} 7... c6 {[%clk 0:02:44.4]} 8. Ne2 {[%clk
0:02:45.8]} 8... Re8 {[%clk 0:02:34.3]} 9. Ng3 {[%clk 0:02:45.6]} 9... Nbd7
{[%clk 0:02:29.4]} 10. Nf5 {[%clk 0:02:18.4]} 10... Nf8 {[%clk 0:02:23.3]} 11.
Ne5 {[%clk 0:02:17.4]} 11... Ne4 {[%clk 0:02:10.8]} 12. Qf3 {[%clk 0:01:38.7]}
12... Be6 {[%clk 0:01:35.9]} 13. c3 {[%clk 0:01:03.2]} 13... Ba5 {[%clk
0:01:13.2]} 14. Bxe4 {[%clk 0:01:03]} 14... dxe4 {[%clk 0:01:13.2]} 15. Qxe4
{[%clk 0:01:03.9]} 15... f6 {[%clk 0:01:10.3]} 16. Nf3 {[%clk 0:00:48.6]} 16...
Qd7 {[%clk 0:00:56.2]} 17. g4 {[%clk 0:00:33.4]} 17... Bc4 {[%clk 0:00:49]} 18.
Qc2 {[%clk 0:00:22.3]} 18... Bxf1 {[%clk 0:00:46.5]} 19. Kxf1 {[%clk 0:00:23.2]}
19... Bc7 {[%clk 0:00:43.6]} 20. Be3 {[%clk 0:00:20.3]} 20... Kh8 {[%clk
0:00:35.6]} 21. Ke2 {[%clk 0:00:19.1]} 21... Ng6 {[%clk 0:00:34.8]} 22. Rg1
{[%clk 0:00:17.8]} 22... Qd5 {[%clk 0:00:34.1]} 23. c4 {[%clk 0:00:12.7]} 23...
Nf4+ {[%clk 0:00:33.9]} 24. Kd2 {[%clk 0:00:10.1]} 24... Qxf3 {[%clk 0:00:34.8]}
25. Qd1 {[%clk 0:00:03.7]} 25... Qxd1+ {[%clk 0:00:34.5]} 26. Kxd1 {[%clk
0:00:03.9]} 26... g6 {[%clk 0:00:34.4]} 27. Ng3 {[%clk 0:00:03.4]} 27... Rad8
{[%clk 0:00:33.8]} 0-1

[Event "*** Titled Tuesday Blitz"]
[Site "Chess.com"]
[Date "2020.05.26"]
[Round "7"]
[White "StephenDedalus83"]
[Black "Shushik"]
[Result "1-0"]
[WhiteElo "2729"]
[BlackElo "2133"]
[TimeControl "180+1"]
[EndTime "11:20:28 PDT"]
[Termination "StephenDedalus83 won by resignation"]

1. e4 {[%clk 0:03:00.9]} 1... e5 {[%clk 0:03:00.2]} 2. Nf3 {[%clk 0:02:59.9]}
2... Nc6 {[%clk 0:03:00.5]} 3. Bb5 {[%clk 0:02:59.3]} 3... Nf6 {[%clk
0:03:00.4]} 4. O-O {[%clk 0:02:57.9]} 4... Nxe4 {[%clk 0:03:00.6]} 5. d4 {[%clk
0:02:58.3]} 5... Nd6 {[%clk 0:03:00.5]} 6. Bxc6 {[%clk 0:02:58.9]} 6... dxc6
{[%clk 0:03:00.7]} 7. dxe5 {[%clk 0:02:59.6]} 7... Nf5 {[%clk 0:03:00.8]} 8.
Qxd8+ {[%clk 0:03:00.2]} 8... Kxd8 {[%clk 0:03:00.9]} 9. Rd1+ {[%clk 0:03:00.8]}
9... Ke8 {[%clk 0:03:00.9]} 10. h3 {[%clk 0:03:01.5]} 10... Be7 {[%clk
0:03:00.1]} 11. Nc3 {[%clk 0:02:59.9]} 11... Be6 {[%clk 0:02:56.1]} 12. Bg5
{[%clk 0:02:59.6]} 12... h6 {[%clk 0:02:52.2]} 13. Bxe7 {[%clk 0:02:59]} 13...
Nxe7 {[%clk 0:02:51.1]} 14. Ne2 {[%clk 0:02:58.5]} 14... Ng6 {[%clk 0:02:46.1]}
15. Re1 {[%clk 0:02:51.4]} 15... Ke7 {[%clk 0:02:39.4]} 16. Ned4 {[%clk
0:02:48.2]} 16... Rad8 {[%clk 0:02:36.3]} 17. Nxe6 {[%clk 0:02:46.6]} 17... Kxe6
{[%clk 0:02:29.9]} 18. Re4 {[%clk 0:02:46.3]} 18... c5 {[%clk 0:02:24.8]} 19.
Rae1 {[%clk 0:02:45.4]} 19... Rd7 {[%clk 0:02:19]} 20. Kh2 {[%clk 0:02:43.4]}
20... Rhd8 {[%clk 0:02:18]} 21. R1e2 {[%clk 0:02:43.1]} 21... Rd1 {[%clk
0:02:12.1]} 22. Ne1 {[%clk 0:02:42]} 22... R1d4 {[%clk 0:02:04.8]} 23. Nd3
{[%clk 0:02:33.2]} 23... b6 {[%clk 0:02:02.2]} 24. b3 {[%clk 0:02:24.3]} 24...
Rxe4 {[%clk 0:01:54.8]} 25. Rxe4 {[%clk 0:02:24.1]} 25... Rd4 {[%clk 0:01:54.8]}
26. Rxd4 {[%clk 0:02:24.1]} 26... cxd4 {[%clk 0:01:54.8]} 27. f4 {[%clk
0:02:24.7]} 27... Ne7 {[%clk 0:01:48.2]} 28. g4 {[%clk 0:02:23.8]} 28... g6
{[%clk 0:01:48]} 29. Kg3 {[%clk 0:02:23.8]} 29... Nd5 {[%clk 0:01:47.3]} 30. Kf3
{[%clk 0:02:23.8]} 30... c5 {[%clk 0:01:44.9]} 31. a3 {[%clk 0:02:10.3]} 31...
a6 {[%clk 0:01:33.2]} 32. Nf2 {[%clk 0:01:58.3]} 32... Nc3 {[%clk 0:01:28.4]}
33. Ne4 {[%clk 0:01:53.9]} 33... Nb1 {[%clk 0:01:24.1]} 34. a4 {[%clk
0:01:51.8]} 34... Na3 {[%clk 0:01:22.9]} 35. c3 {[%clk 0:01:50.7]} 35... dxc3
{[%clk 0:01:16.9]} 36. Nxc3 {[%clk 0:01:49.7]} 36... Nc2 {[%clk 0:01:16.7]} 37.
Ke4 {[%clk 0:01:49.6]} 37... Nd4 {[%clk 0:01:15.4]} 38. Nd5 {[%clk 0:01:44.3]}
38... Nxb3 {[%clk 0:01:11.5]} 39. f5+ {[%clk 0:01:44.3]} 39... gxf5+ {[%clk
0:01:05.5]} 40. gxf5+ {[%clk 0:01:45.2]} 40... Kd7 {[%clk 0:01:05.3]} 41. Nxb6+
{[%clk 0:01:45.2]} 41... Kc6 {[%clk 0:01:04.7]} 42. Nc4 {[%clk 0:01:45.2]} 42...
Nd4 {[%clk 0:01:02.3]} 43. Na5+ {[%clk 0:01:36.5]} 43... Kb6 {[%clk 0:01:01.1]}
44. Nc4+ {[%clk 0:01:36.3]} 44... Kc6 {[%clk 0:01:01.2]} 45. h4 {[%clk
0:01:35.5]} 45... h5 {[%clk 0:00:58.4]} 46. Ne3 {[%clk 0:01:34.2]} 46... Kd7
{[%clk 0:00:50.1]} 47. Kd5 {[%clk 0:01:33.1]} 47... Nf3 {[%clk 0:00:49.5]} 48.
e6+ {[%clk 0:01:30.9]} 48... fxe6+ {[%clk 0:00:48.7]} 49. fxe6+ {[%clk
0:01:30.3]} 49... Ke8 {[%clk 0:00:47.8]} 50. Nf5 {[%clk 0:01:29.4]} 50... Nd2
{[%clk 0:00:45.3]} 51. Kxc5 {[%clk 0:01:27.9]} 51... Ne4+ {[%clk 0:00:45.7]} 52.
Kd5 {[%clk 0:01:27.5]} 52... Nc3+ {[%clk 0:00:45.7]} 53. Kd6 {[%clk 0:01:27.3]}
53... Ne4+ {[%clk 0:00:45.7]} 54. Ke5 {[%clk 0:01:27.2]} 54... Nc5 {[%clk
0:00:44.3]} 55. a5 {[%clk 0:01:25.7]} 55... Nb7 {[%clk 0:00:44]} 56. Kf6 {[%clk
0:01:25.1]} 56... Nxa5 {[%clk 0:00:35.5]} 57. Ng7+ {[%clk 0:01:24]} 57... Kf8
{[%clk 0:00:35.1]} 58. e7+ {[%clk 0:01:24.9]} 58... Kg8 {[%clk 0:00:35.4]} 59.
e8=Q+ {[%clk 0:01:24.5]} 1-0

[Event "*** Titled Tuesday Blitz"]
[Site "Chess.com"]
[Date "2020.05.26"]
[Round "7"]
[White "realmadridtv"]
[Black "AGW2016"]
[Result "0-1"]
[WhiteElo "2443"]
[BlackElo "2248"]
[TimeControl "180+1"]
[EndTime "11:20:29 PDT"]
[Termination "AGW2016 won by resignation"]

1. e4 {[%clk 0:03:00.9]} 1... c5 {[%clk 0:02:59.1]} 2. Nf3 {[%clk 0:03:00.4]}
2... d6 {[%clk 0:02:59.5]} 3. Nc3 {[%clk 0:03:00.7]} 3... Nc6 {[%clk 0:02:58.4]}
4. b3 {[%clk 0:02:56.6]} 4... g6 {[%clk 0:02:57.8]} 5. Bb2 {[%clk 0:02:56.9]}
5... Bg7 {[%clk 0:02:58.5]} 6. Bb5 {[%clk 0:02:55.4]} 6... Bd7 {[%clk
0:02:57.8]} 7. O-O {[%clk 0:02:55.6]} 7... e6 {[%clk 0:02:58]} 8. Re1 {[%clk
0:02:55.7]} 8... Nge7 {[%clk 0:02:58.3]} 9. Bxc6 {[%clk 0:02:42.1]} 9... Bxc6
{[%clk 0:02:57.4]} 10. d4 {[%clk 0:02:41.1]} 10... cxd4 {[%clk 0:02:53.2]} 11.
Nxd4 {[%clk 0:02:42]} 11... O-O {[%clk 0:02:53.5]} 12. Nxc6 {[%clk 0:02:40.4]}
12... Nxc6 {[%clk 0:02:53.5]} 13. Na4 {[%clk 0:02:37]} 13... Bxb2 {[%clk
0:02:52.3]} 14. Nxb2 {[%clk 0:02:37.9]} 14... b5 {[%clk 0:02:45]} 15. Qe2 {[%clk
0:02:33.5]} 15... a6 {[%clk 0:02:43.7]} 16. Rad1 {[%clk 0:02:28.3]} 16... Qc7
{[%clk 0:02:43.7]} 17. c4 {[%clk 0:02:26.8]} 17... Rab8 {[%clk 0:02:37]} 18. h4
{[%clk 0:02:24.2]} 18... h5 {[%clk 0:02:36.7]} 19. g3 {[%clk 0:02:14.8]} 19...
Ne5 {[%clk 0:02:33.6]} 20. Rc1 {[%clk 0:02:12.1]} 20... Qa5 {[%clk 0:02:30.3]}
21. cxb5 {[%clk 0:02:08.5]} 21... axb5 {[%clk 0:02:29.2]} 22. Nd3 {[%clk
0:02:08.2]} 22... Nxd3 {[%clk 0:02:29]} 23. Qxd3 {[%clk 0:02:09.1]} 23... Qxa2
{[%clk 0:02:29.2]} 24. Rc7 {[%clk 0:01:58.7]} 24... Qa5 {[%clk 0:02:24.8]} 25.
Rec1 {[%clk 0:01:52.8]} 25... Qb4 {[%clk 0:02:25.2]} 26. Kg2 {[%clk 0:01:46.7]}
26... Rfd8 {[%clk 0:02:20.5]} 27. Qf3 {[%clk 0:01:45]} 27... Rf8 {[%clk
0:02:18.8]} 28. Rd7 {[%clk 0:01:37.8]} 28... Rbd8 {[%clk 0:02:16.8]} 29. Rcc7
{[%clk 0:01:33.3]} 29... Rxd7 {[%clk 0:02:16.5]} 30. Rxd7 {[%clk 0:01:34.2]}
30... Qd4 {[%clk 0:02:15.1]} 31. Qf4 {[%clk 0:01:24.2]} 31... e5 {[%clk
0:02:07.8]} 32. Qf3 {[%clk 0:01:23.2]} 32... b4 {[%clk 0:02:07.9]} 33. Qe2
{[%clk 0:01:13.7]} 33... Rc8 {[%clk 0:02:00.4]} 34. Qf3 {[%clk 0:01:10.9]} 34...
Rf8 {[%clk 0:01:59.3]} 35. Rb7 {[%clk 0:01:05.3]} 35... f5 {[%clk 0:01:49.1]}
36. exf5 {[%clk 0:00:58.4]} 36... Rxf5 {[%clk 0:01:47.7]} 37. Rb8+ {[%clk
0:00:53.3]} 37... Kg7 {[%clk 0:01:43.1]} 38. Qe3 {[%clk 0:00:29.5]} 38... Qd5+
{[%clk 0:01:35.7]} 39. Kg1 {[%clk 0:00:27.6]} 39... Qc5 {[%clk 0:01:31.9]} 40.
Qe2 {[%clk 0:00:16.4]} 40... Rf7 {[%clk 0:01:28.5]} 41. Rb5 {[%clk 0:00:15.4]}
41... Qd4 {[%clk 0:01:27]} 42. Kg2 {[%clk 0:00:11.8]} 42... e4 {[%clk
0:01:26.3]} 43. Qc2 {[%clk 0:00:11.5]} 43... e3 {[%clk 0:01:22.2]} 44. fxe3
{[%clk 0:00:12]} 44... Qxe3 {[%clk 0:01:22.4]} 45. Rd5 {[%clk 0:00:12.2]} 45...
Qf3+ {[%clk 0:01:21.2]} 46. Kh2 {[%clk 0:00:12.8]} 46... Qxd5 {[%clk 0:01:21.8]}
47. Qb2+ {[%clk 0:00:13.6]} 47... Qe5 {[%clk 0:01:22]} 48. Qd2 {[%clk
0:00:14.2]} 48... Re7 {[%clk 0:01:20.9]} 49. Qxb4 {[%clk 0:00:14.3]} 49... Qe2+
{[%clk 0:01:20.3]} 50. Kh3 {[%clk 0:00:14.9]} 50... Qf1+ {[%clk 0:01:20.8]} 0-1

[Event "*** Titled Tuesday Blitz"]
[Site "Chess.com"]
[Date "2020.05.26"]
[Round "7"]
[White "Larina_Marija"]
[Black "Roenko_Artur"]
[Result "1-0"]
[WhiteElo "2158"]
[BlackElo "2281"]
[TimeControl "180+1"]
[EndTime "11:20:30 PDT"]
[Termination "Larina_Marija won on time"]

1. e4 {[%clk 0:03:00]} 1... c5 {[%clk 0:02:56.3]} 2. Nc3 {[%clk 0:02:59.7]} 2...
g6 {[%clk 0:02:52.4]} 3. g3 {[%clk 0:02:55.3]} 3... Bg7 {[%clk 0:02:52]} 4. Bg2
{[%clk 0:02:55.6]} 4... Nc6 {[%clk 0:02:50.6]} 5. Nge2 {[%clk 0:02:54.5]} 5...
d6 {[%clk 0:02:45.5]} 6. d3 {[%clk 0:02:54.4]} 6... Nf6 {[%clk 0:02:44.9]} 7.
O-O {[%clk 0:02:54.2]} 7... O-O {[%clk 0:02:43.3]} 8. f4 {[%clk 0:02:53.3]} 8...
Rb8 {[%clk 0:02:33.1]} 9. a4 {[%clk 0:02:46.2]} 9... Nb4 {[%clk 0:02:24.3]} 10.
d4 {[%clk 0:02:37.1]} 10... cxd4 {[%clk 0:02:15.6]} 11. Nxd4 {[%clk 0:02:36.8]}
11... e5 {[%clk 0:01:39.1]} 12. Ndb5 {[%clk 0:02:34]} 12... Qb6+ {[%clk
0:01:29.9]} 13. Kh1 {[%clk 0:02:30.3]} 13... Ng4 {[%clk 0:01:28]} 14. Qe2 {[%clk
0:02:25.8]} 14... a6 {[%clk 0:01:21.4]} 15. Na3 {[%clk 0:02:21.2]} 15... h5
{[%clk 0:00:34.2]} 16. Nc4 {[%clk 0:02:19.7]} 16... Qc7 {[%clk 0:00:33.1]} 17.
h3 {[%clk 0:02:11.8]} 17... Nf6 {[%clk 0:00:23.7]} 18. a5 {[%clk 0:02:09.4]}
18... Nxc2 {[%clk 0:00:23]} 19. Qxc2 {[%clk 0:01:50.3]} 19... Qxc4 {[%clk
0:00:22.2]} 20. Ra4 {[%clk 0:01:50.1]} 20... Qc6 {[%clk 0:00:20.8]} 21. Qe2
{[%clk 0:01:46.6]} 21... Bd7 {[%clk 0:00:18.8]} 22. Rc4 {[%clk 0:01:45.9]} 22...
Qxc4 {[%clk 0:00:11]} 23. Qxc4 {[%clk 0:01:45.1]} 23... Rbc8 {[%clk 0:00:09.3]}
24. Qb3 {[%clk 0:01:42.5]} 24... Bc6 {[%clk 0:00:08.9]} 25. Nd5 {[%clk
0:01:40.7]} 25... Nxd5 {[%clk 0:00:07.4]} 26. exd5 {[%clk 0:01:40.8]} 26... Bb5
{[%clk 0:00:07.8]} 27. Re1 {[%clk 0:01:38.9]} 27... exf4 {[%clk 0:00:06.2]} 28.
Bxf4 {[%clk 0:01:38.5]} 28... Rfe8 {[%clk 0:00:06.5]} 29. Rxe8+ {[%clk 0:01:37]}
29... Rxe8 {[%clk 0:00:06.4]} 30. Bxd6 {[%clk 0:01:36.8]} 30... Re2 {[%clk
0:00:06.4]} 31. Bc5 {[%clk 0:01:26.1]} 31... Rxb2 {[%clk 0:00:05.9]} 32. Qe3
{[%clk 0:01:24.5]} 32... Rb1+ {[%clk 0:00:05.4]} 33. Kh2 {[%clk 0:01:23.3]}
33... Rd1 {[%clk 0:00:04.9]} 34. d6 {[%clk 0:01:22.6]} 34... Rb1 {[%clk
0:00:03.1]} 35. Bxb7 {[%clk 0:01:21.8]} 35... Rb2+ {[%clk 0:00:02.7]} 36. Bg2
{[%clk 0:01:21.8]} 36... Bc6 {[%clk 0:00:02.2]} 37. d7 {[%clk 0:01:16.7]} 1-0